bitfinex/quotes_ETHUSD_20250404
["timestamp","ask_amount","ask_price","bid_price","bid_amount"]
[1743775066695,5.56904,1795.7,1795.3,0.635627]
[1743775066923,5.56892,1795.7,1795.2,5.57021]
[1743775067118,5.56885,1795.8,1795.2,11.14048]
[1743775067424,5.56969,1795.5,1795.0,0.7574]
[1743775067626,5.56969,1795.5,1795.0,5.57098]
[1743775067928,5.56916,1795.6,1795.0,5.57076]
[1743775068131,6.3311,1795.7,1795.2,5.57025]
[1743775068355,6.3311,1795.7,1795.1,5.57067]
[1743775068529,5.56924,1795.6,1795.0,6.127936]
[1743775068734,5.56988,1795.4,1794.8,7.065636]
[1743775069136,5.56988,1795.4,1794.9,11.1423]
[1743775069330,5.56988,1795.4,1794.9,11.14231]
[1743775069545,5.56988,1795.4,1794.9,5.57125]
[1743775069743,5.56943,1795.6,1795.0,5.57088]
[1743775069952,5.56993,1795.4,1794.9,5.57119]
[1743775070332,31.40012,1795.7,1794.7,0.7913]
[1743775070645,5.57007,1795.4,1794.8,5.57151]
[1743775070965,5.57063,1795.2,1794.7,5.57188]
[1743775071255,5.57063,1795.2,1794.8,0.0557101]
[1743775071420,7.014,1795.3,1794.9,5.57113]
[1743775071625,5.57006,1795.4,1795.0,5.57095]
[1743775071820,5.57006,1795.4,1794.9,5.57113]
[1743775072126,5.56954,1795.5,1795.0,6.37859]
[1743775072327,5.56954,1795.5,1795.0,6.37849]
[1743775072328,5.5698,1795.4,1795.0,6.37849]
[1743775072555,5.57023,1795.3,1794.8,11.70564901]
[1743775072766,11.12398971,1795.6,1795.1,5.57055]
[1743775073022,0.7622,1795.7,1795.1,5.57068]
[1743775073227,5.56982,1795.4,1794.9,6.7418349]
[1743775073467,5.57011,1795.3,1794.9,6.7418449]
[1743775073675,5.56947,1795.5,1794.8,0.56275901]
[1743775073975,5.57116,1795.0,1794.6,6.34038]
[1743775074175,5.57116,1795.0,1794.6,0.7683]
[1743775074327,5.57116,1795.0,1794.6,6.34057]
[1743775074523,5.57135,1794.9,1794.4,5.57274]
[1743775074829,6.994,1795.1,1794.4,1.196223]
[1743775075024,6.994,1795.1,1794.5,5.57235]
[1743775075025,5.57103,1795.0,1794.5,5.57235]
[1743775075230,5.57103,1795.0,1794.5,11.14475]
[1743775075438,6.994,1795.1,1794.8,5.57163]
[1743775075761,6.994,1795.1,1794.5,5.57236]
[1743775075762,6.994,1795.1,1794.7,5.57191]
[1743775075960,12.56486,1795.1,1794.6,5.57219]
[1743775076164,5.56952,1795.5,1795.0,5.57103]
[1743775076459,3.0,1795.8,1795.3,5.56985]
[1743775076460,0.7882,1795.6,1795.3,5.56985]
[1743775076663,6.35742,1795.6,1795.1,11.14107]
[1743775076847,5.5695,1795.5,1795.1,5.5705]
[1743775077052,6.35742,1795.6,1795.2,0.05569816]
[1743775077249,5.56886,1795.7,1795.2,5.62591816]
[1743775077463,31.40856,1795.9,1795.2,0.05569816]
[1743775077666,31.40856,1795.9,1795.4,5.56964]
[1743775077667,31.40855,1795.9,1795.4,5.56964]
[1743775077969,31.40869,1795.9,1795.5,5.56925]
[1743775078135,5.56868,1795.8,1795.4,5.56977]
[1743775078337,31.40869,1795.9,1795.2,5.57033]
[1743775078338,5.56892,1795.7,1795.2,5.57033]
[1743775078540,31.4087,1795.9,1795.4,5.56974]
[1743775078849,25.84031,1795.9,1795.5,5.56947]
[1743775079047,25.06301,1795.9,1795.6,5.56913]
[1743775079374,25.06301,1795.9,1795.5,5.56947]
[1743775079676,25.06301,1795.9,1795.3,5.57005]
[1743775079972,1e-05,1795.9,1795.7,5.56868]
[1743775080143,1e-05,1795.9,1795.8,5.56854]
[1743775080348,1e-05,1795.9,1795.8,5.62421593]
[1743775080546,1e-05,1795.9,1795.8,5.56854]
[1743775080950,1e-05,1795.9,1795.8,5.62421501]
[1743775081150,1e-05,1795.9,1795.8,7.2378295]
[1743775081479,1e-05,1795.9,1795.8,10.29349521]
[1743775081640,1e-05,1795.9,1795.8,10.2378295]
[1743775081970,5.09e-06,1796.1,1796.0,6.11792]
[1743775082137,0.05,1796.9,1796.1,8.56747]
[1743775082340,0.05,1796.9,1796.2,6.11714]
[1743775082572,0.12452777,1796.8,1796.6,5.56604]
[1743775082875,5.56544,1796.8,1796.2,5.56719]
[1743775083048,0.12615103,1796.7,1796.1,0.38861021]
[1743775083253,5.5673,1796.3,1796.1,0.38861021]
[1743775083451,5.56818,1796.0,1795.5,5.56934]
[1743775083849,5.56818,1796.0,1795.4,6.937265]
[1743775083850,5.56888,1795.7,1795.4,0.8107]
[1743775084174,5.56878,1795.8,1795.2,5.57021]
[1743775084372,5.56928,1795.6,1795.1,5.5707]
[1743775084750,5.56973,1795.5,1794.7,0.772]
[1743775084950,7.033,1795.5,1794.7,0.772]
[1743775085154,5.57123,1795.0,1794.5,12.12264469]
[1743775085353,5.5712,1795.0,1794.5,6.55006469]
[1743775085547,5.5712,1795.0,1794.5,12.12244469]
[1743775085744,0.7722,1795.4,1795.0,5.57094]
[1743775086182,5.56932,1795.6,1795.1,5.5705]
[1743775086386,0.7919,1795.7,1795.3,5.57009]
[1743775086561,0.7919,1795.7,1795.2,0.55705]
[1743775086562,5.56941,1795.6,1795.2,0.55705]
[1743775086749,0.7919,1795.7,1795.3,5.57007]
[1743775086950,0.7694,1796.0,1795.7,5.56864]
[1743775087155,0.7694,1796.0,1795.5,5.56928]
[1743775087454,0.7694,1796.0,1795.5,6.683256]
[1743775087655,0.7617,1796.3,1795.9,5.568]
[1743775087988,0.7617,1796.3,1796.0,0.05567085]
[1743775088185,25.05,1796.4,1796.0,0.05567085]
[1743775088402,7.8227,1796.6,1796.3,5.56674]
[1743775088600,5.56693,1796.4,1795.9,0.55]
[1743775088764,5.5664,1796.5,1796.0,5.56791]
[1743775089105,5.5664,1796.5,1796.1,6.17995123]
[1743775089400,5.5664,1796.5,1796.1,6.124281]
[1743775089623,5.56683,1796.4,1796.1,0.94685569]
[1743775089965,5.5664,1796.5,1796.1,0.94685569]
[1743775090166,5.56547,1796.8,1796.1,0.39006469]
[1743775090167,11.1342,1796.3,1796.1,0.39006469]
[1743775090386,5.56669,1796.4,1796.1,0.39006469]
[1743775090555,5.5664,1796.5,1796.1,0.39006469]
[1743775090758,5.5664,1796.5,1796.2,0.05566905]
[1743775090955,12.60507,1796.6,1796.2,6.01291064]
[1743775091195,5.56654,1796.5,1796.2,0.39006469]
[1743775091489,12.59409,1796.6,1796.2,0.39006469]
[1743775091689,7.028,1796.6,1796.2,0.39006469]
[1743775091896,7.028,1796.6,1795.8,6.16]
[1743775091897,5.56689,1796.4,1796.3,0.39006469]
[1743775092080,12.59408,1796.6,1796.3,0.39006469]
[1743775092283,12.58581,1796.7,1796.3,0.39006469]
[1743775092694,5.56637,1796.5,1796.4,0.39006469]
[1743775092864,6.36257,1796.5,1796.4,0.39006469]
[1743775093298,0.7962,1796.5,1796.4,0.39006469]
[1743775093495,0.8287,1796.9,1796.5,5.56624]
[1743775093798,0.1246656,1796.8,1796.7,5.56565]
[1743775094168,0.05,1796.9,1796.8,5.56544]
[1743775094361,0.05,1796.9,1796.8,5.62108381]
[1743775094560,0.17503878,1796.9,1796.8,5.62108381]
[1743775094757,0.05,1796.9,1796.8,5.95550469]
[1743775094986,0.17544167,1796.9,1796.8,13.32326443]
[1743775095195,0.05,1796.9,1796.8,13.26762016]
[1743775095702,0.05,1796.9,1796.8,7.70218016]
[1743775095868,0.05,1796.9,1796.8,13.32326231]
[1743775096059,0.1569113,1796.9,1796.8,14.61402016]
[1743775096268,0.05,1796.9,1796.8,6.55006469]
[1743775096666,5.71941827,1796.9,1796.8,0.39006469]
[1743775097795,0.15428827,1796.9,1796.1,5.95758469]
[1743775097999,5.56557,1796.8,1796.3,5.56687]
[1743775098203,5.56557,1796.8,1796.3,5.5669]
[1743775098497,5.56627,1796.6,1796.1,17.68507469]
[1743775098808,0.12646442,1796.5,1796.4,5.56651]
[1743775099103,0.12646442,1796.5,1796.4,5.95657469]
[1743775099408,0.05,1796.9,1796.6,5.56594]
[1743775099597,0.05,1796.9,1796.7,5.56573]
[1743775099904,0.05,1796.9,1796.7,5.95569469]
[1743775100087,5.56544,1796.8,1796.7,0.39006469]
[1743775100405,6.38314,1796.8,1796.7,0.39006469]
[1743775100714,6.944684,1796.8,1796.7,0.39006469]
[1743775101127,0.05,1796.9,1796.8,5.56544]
[1743775101701,0.05,1796.9,1796.4,0.7566]
[1743775102215,0.05,1796.9,1796.6,5.56605]
[1743775102412,0.05,1796.9,1796.5,5.95638469]
[1743775102575,0.05,1796.9,1796.5,6.01207995]
[1743775102774,0.05,1796.9,1796.6,5.56605]
[1743775102974,0.05,1796.9,1796.5,6.68877797]
[1743775103175,0.05,1796.9,1796.6,0.39006469]
[1743775103397,6.36325,1796.7,1796.6,0.39006469]
[1743775103806,13.50925,1796.7,1796.6,0.39006469]
[1743775104081,0.7975,1796.7,1796.6,0.39006469]
[1743775104511,0.05,1796.9,1796.6,0.39006469]
[1743775104791,5.56587,1796.7,1796.3,5.95702469]
[1743775104994,11.18048,1796.9,1796.4,5.56665]
[1743775105179,0.05,1796.9,1796.6,5.56587]
[1743775105678,0.05,1796.9,1796.7,5.62139311]
[1743775105893,0.05,1796.9,1796.7,6.0114578]
[1743775106107,0.05,1796.9,1796.8,5.56544]
[1743775107011,0.05,1796.9,1796.8,12.11550469]
[1743775107207,0.05,1796.9,1796.8,14.65141316]
[1743775108128,0.798,1797.4,1797.3,5.5639]
[1743775108129,0.005,1797.4,1797.3,5.5639]
[1743775108430,0.005,1797.4,1797.3,11.77952344]
[1743775108600,0.005,1797.4,1797.3,12.5312]
[1743775108996,0.005,1797.4,1797.3,13.0812]
[1743775109212,0.06,1797.9,1797.8,5.56235]
[1743775109631,0.06,1797.9,1797.8,6.42746256]
[1743775109835,0.005,1798.2,1798.0,5.56163]
[1743775109996,0.005,1798.2,1798.1,18.78225537]
[1743775110192,6.38731467,1799.0,1798.5,5.56014]
[1743775110606,5.55959,1798.7,1798.1,5.95126469]
[1743775110899,11.12032,1798.6,1798.1,5.95135469]
[1743775111126,5.56015,1798.6,1798.0,11.12326]
[1743775111319,5.56015,1798.6,1797.9,0.39006469]
[1743775111601,5.56038,1798.5,1798.0,5.56173]
[1743775111835,5.55991,1798.6,1798.0,6.15666947]
[1743775112008,5.55983,1798.7,1798.1,5.61675468]
[1743775112209,5.56003,1798.6,1798.1,5.61675468]
[1743775112407,9.20508914,1799.0,1798.1,5.61675468]
[1743775112619,5.5597,1798.7,1798.2,5.56111]
[1743775112908,5.55948,1798.8,1798.2,5.56111]
[1743775113113,6.38744467,1799.0,1798.6,5.55986]
[1743775113326,5.55918,1798.9,1798.3,5.56054]
[1743775113498,5.55916,1798.9,1798.4,5.61608748]
[1743775113706,11.94615467,1799.0,1798.5,5.56005]
[1743775113900,6.38721467,1799.0,1798.5,5.61562268]
[1743775114348,0.03752467,1799.0,1798.7,5.55942]
[1743775114839,0.03752467,1799.0,1798.9,5.55895]
[1743775115042,0.27418198,1800.2,1800.1,5.55524]
[1743775115343,5.5519,1801.2,1800.7,5.55322]
[1743775115637,0.55,1801.3,1800.8,5.55308]
[1743775116202,0.55,1801.3,1800.8,5.60860239]
[1743775116408,0.05,1801.9,1800.9,0.7854]
[1743775116620,0.05,1801.9,1801.1,5.60017606]
[1743775116820,5.55045,1801.7,1801.0,5.55236]
[1743775117026,0.7973,1801.6,1800.9,6.38557606]
[1743775117238,5.59985,1801.9,1800.9,6.38557606]
[1743775117239,0.05,1801.9,1800.9,6.38557606]
[1743775117439,0.05,1801.9,1801.7,5.55029]
[1743775117654,0.05,1801.9,1801.8,5.60549109]
[1743775117814,0.05,1801.9,1801.8,5.55]
[1743775118425,0.05,1801.9,1801.8,11.70017606]
[1743775118636,25.008,1802.8,1801.9,0.55]
[1743775118835,2.5008,1802.7,1801.9,5.54939]
[1743775119133,5.54817,1802.4,1801.7,6.37624]
[1743775119336,5.54877,1802.2,1801.6,5.55061]
[1743775119537,5.54863,1802.3,1801.7,5.55027]
[1743775119756,0.7614,1802.3,1801.5,5.55067]
[1743775120048,5.54978,1801.9,1801.4,5.55122]
[1743775120256,12.209665,1801.9,1801.3,11.10266]
[1743775120452,1.109935,1801.9,1801.4,5.60669462]
[1743775120753,0.7614,1802.3,1801.8,5.54977]
[1743775120920,6.30986,1802.3,1801.8,5.54977]
[1743775121121,5.54877,1802.2,1801.7,5.55028]
[1743775121437,5.54939,1802.0,1801.4,5.55101]
[1743775121638,5.55047,1801.7,1801.2,5.55156]
[1743775122034,5.55069,1801.6,1801.2,5.55156]
[1743775122233,5.55114,1801.5,1801.0,5.55225]
[1743775122661,5.55146,1801.4,1800.9,5.55262]
[1743775122957,5.55206,1801.2,1800.6,5.55348]
[1743775123254,5.55153,1801.4,1800.9,5.55277]
[1743775123255,5.55154,1801.3,1800.9,5.55277]
[1743775123418,0.7648,1801.6,1801.0,0.05551787]
[1743775123619,0.7676,1801.9,1801.1,5.60017606]
[1743775123822,0.7676,1801.9,1801.4,5.55121]
[1743775124257,6.3175,1801.9,1801.4,5.55108]
[1743775124459,5.55001,1801.8,1801.3,5.55148]
[1743775124767,5.55095,1801.5,1801.0,5.55217]
[1743775124959,5.55065,1801.6,1801.0,5.55217]
[1743775125129,5.55005,1801.8,1801.3,5.55133]
[1743775125322,5.54909,1802.1,1801.5,5.55074]
[1743775125521,5.54951,1802.0,1801.5,5.55071]
[1743775125766,5.54944,1802.0,1801.4,5.55103]
[1743775125963,5.5505,1801.7,1801.2,5.5516]
[1743775126124,11.09917,1802.0,1801.4,5.55111]
[1743775126333,5.5495,1802.0,1801.5,5.5508]
[1743775126548,5.54976,1801.9,1801.4,5.55123]
[1743775126867,11.09901,1802.0,1801.5,5.60618693]
[1743775127078,5.54981,1801.9,1801.4,5.55122]
[1743775127368,11.10101,1801.7,1801.2,13.12866]
[1743775127523,5.55001,1801.8,1801.3,5.55141]
[1743775127859,5.54947,1802.0,1801.5,5.55071]
[1743775128172,5.54877,1802.2,1801.7,5.55012]
[1743775128351,5.54998,1801.9,1801.3,5.55154]
[1743775128561,5.55002,1801.8,1801.2,5.60017606]
[1743775128764,5.55002,1801.8,1801.4,5.55113]
[1743775129078,5.55046,1801.7,1801.3,5.55151]
[1743775129374,5.55137,1801.4,1801.1,7.61]
[1743775129574,5.55031,1801.7,1800.9,0.7793]
[1743775129877,0.7736,1801.9,1801.3,5.55151]
[1743775130041,5.55002,1801.8,1801.5,5.55067]
[1743775130235,6.32344,1801.9,1801.5,5.55067]
[1743775130441,11.09904,1802.0,1801.6,5.60600683]
[1743775130749,5.55044,1801.7,1801.2,5.55175]
[1743775130953,5.55086,1801.6,1801.3,0.05550525]
[1743775131165,5.55098,1801.5,1801.3,0.05550525]
[1743775131379,5.55134,1801.4,1801.1,0.05550892]
[1743775131674,0.8045,1801.6,1801.1,0.05551357]
[1743775131975,5.55169,1801.3,1800.9,5.55264]
[1743775132280,5.55187,1801.2,1800.8,5.55295]
[1743775132475,6.990751,1801.6,1800.8,0.05551704]
[1743775132775,5.55107,1801.5,1801.1,5.55199]
[1743775132943,5.55107,1801.5,1801.1,5.60750355]
[1743775133147,6.990821,1801.6,1801.1,5.55211]
[1743775133343,0.8045,1801.6,1801.3,5.55126]
[1743775133593,38.09483,1801.9,1801.5,5.55079]
[1743775133751,5.55009,1801.8,1801.4,11.10236]
[1743775133950,0.7943,1802.0,1801.2,0.8292]
[1743775134161,5.55062,1801.7,1801.3,5.55138]
[1743775134480,0.7943,1802.0,1801.3,5.55144]
[1743775134481,5.55026,1801.8,1801.3,5.55144]
[1743775134696,6.105366,1801.7,1801.1,5.55188]
[1743775134846,6.105366,1801.7,1801.1,5.60738832]
[1743775135176,5.55034,1801.7,1801.2,5.55165]
[1743775135362,6.34374,1802.0,1801.3,5.60702904]
[1743775135363,5.55004,1801.8,1801.3,5.60702904]
[1743775135574,7.551,1801.9,1801.4,5.55122]
[1743775135890,13.10069,1801.9,1801.5,5.55076]
[1743775136091,7.411,1801.9,1801.7,5.5501]
[1743775136305,0.7943,1802.0,1801.7,5.55029]
[1743775136466,11.89334,1802.0,1801.5,5.55065]
[1743775136649,11.89334,1802.0,1801.7,5.55016]
[1743775136650,0.7943,1802.0,1801.7,5.55016]
[1743775136854,5.54976,1801.9,1801.6,5.5505]
[1743775137104,5.55072,1801.6,1801.1,5.55216]
[1743775137399,5.55104,1801.5,1801.1,5.55216]
[1743775137602,5.55104,1801.5,1801.1,5.55202]
[1743775137905,5.55066,1801.6,1801.2,5.55169]
[1743775138052,5.55036,1801.7,1801.3,5.60678334]
[1743775138256,5.55073,1801.6,1801.2,5.55185]
[1743775138485,5.55095,1801.5,1801.1,5.60750892]
[1743775138691,5.55095,1801.5,1801.1,11.15954892]
[1743775138882,5.55032,1801.7,1801.2,5.55168]
[1743775139084,5.55032,1801.7,1801.3,5.55141]
[1743775139310,11.10024,1801.8,1801.4,5.55106]
[1743775139611,0.7943,1802.0,1801.2,0.05550538]
[1743775139899,6.06,1802.5,1802.2,5.54868]
[1743775139900,0.7811,1802.5,1802.2,5.54868]
[1743775140111,0.7811,1802.5,1802.2,11.09734]
[1743775140318,5.54796,1802.5,1802.0,5.54922]
[1743775140468,0.7811,1802.8,1801.2,8.55179]
[1743775140469,6.32806,1802.8,1801.2,8.55179]
[1743775140667,5.54744,1802.7,1802.0,5.54938]
[1743775140867,5.54796,1802.5,1802.0,5.54935]
[1743775141114,5.54764,1802.6,1802.0,5.54936]
[1743775141261,0.05,1802.9,1802.8,5.54692]
[1743775141915,0.05,1802.9,1802.8,6.84702]
[1743775142119,0.05,1802.9,1802.8,19.99219606]
[1743775142398,0.8307,1803.9,1802.8,23.48241667]
[1743775142571,6.37425,1803.9,1803.3,5.54516]
[1743775142771,6.37425,1803.9,1803.5,5.54461]
[1743775142772,0.12590928,1803.8,1803.5,5.54461]
[1743775142980,0.12590928,1803.8,1803.7,5.54415]
[1743775143197,0.05,1803.9,1803.6,5.54428]
[1743775143395,0.05,1803.9,1803.1,8.3853]
[1743775143641,5.54497,1803.5,1803.1,0.38728871]
[1743775143843,0.11616859,1803.8,1803.1,0.38728871]
[1743775144133,0.57730141,1804.3,1803.6,5.54446]
[1743775144343,7.707,1804.9,1803.8,5.60017606]
[1743775144344,5.54107,1804.8,1803.8,5.60017606]
[1743775144489,0.05,1804.9,1804.3,5.60017606]
[1743775144688,0.05,1804.9,1804.4,0.05540602]
[1743775144932,0.05,1804.9,1804.0,11.69327606]
[1743775145133,0.05,1804.9,1804.4,0.7744]
[1743775145285,0.05,1805.9,1804.8,0.7744]
[1743775145490,5.58149,1807.9,1806.1,0.7744]
[1743775145746,5.5845,1806.9,1806.2,5.53633]
[1743775145890,0.05,1806.9,1806.4,5.53556]
[1743775146089,5.58436,1806.9,1806.2,5.5363]
[1743775146290,5.58436,1806.9,1806.1,0.7744]
[1743775146291,0.558436,1806.8,1806.1,0.7744]
[1743775146591,0.05,1806.9,1806.1,11.84796]
[1743775146923,5.53679,1806.1,1806.0,0.38728871]
[1743775147108,0.05,1806.9,1806.0,0.38728871]
[1743775147109,0.7812,1806.6,1806.0,0.38728871]
[1743775147285,0.05,1806.9,1806.1,5.53677]
[1743775147492,0.05,1806.9,1806.8,6.34964]
[1743775147692,1e-05,1806.9,1806.8,19.9797344]
[1743775147892,1e-05,1806.9,1806.5,5.53541]
[1743775148093,5.5352,1806.7,1805.9,5.53717]
[1743775148297,11.07038,1806.7,1806.0,5.5369]
[1743775148531,5.53514,1806.7,1806.0,5.53703]
[1743775148710,1e-05,1806.9,1806.3,11.13627606]
[1743775148908,1e-05,1806.9,1806.5,5.53528]
[1743775149229,1e-05,1806.9,1806.1,6.34632]
[1743775149230,5.5348,1806.8,1806.1,6.34624]
[1743775149436,1e-05,1806.9,1806.1,0.8097]
[1743775149601,5.53622,1806.3,1805.6,0.7929]
[1743775149824,5.53648,1806.2,1805.6,0.7929]
[1743775150024,5.53699,1806.1,1805.7,0.05536449]
[1743775150250,5.53702,1806.1,1805.3,5.53924]
[1743775150461,0.785,1806.3,1805.8,5.5377]
[1743775150671,5.53607,1806.4,1805.6,5.53814]
[1743775150976,5.53607,1806.4,1805.2,5.60017606]
[1743775150977,5.53791,1805.8,1805.2,5.60017606]
[1743775151181,5.53677,1806.2,1805.2,6.24011367]
[1743775151352,5.53718,1806.0,1805.3,5.53908]
[1743775151660,5.53772,1805.8,1805.2,17.31883367]
[1743775151866,5.53772,1805.8,1805.2,5.60017606]
[1743775152174,5.53881,1805.5,1804.9,5.54039]
[1743775152333,5.5391,1805.4,1804.8,5.5405]
[1743775152663,5.53878,1805.5,1804.4,15.94370288]
[1743775152967,5.53756,1805.9,1805.2,5.53934]
[1743775153117,5.53883,1805.5,1804.8,5.54057]
[1743775153321,5.53942,1805.3,1804.6,5.54111]
[1743775153563,5.53894,1805.4,1804.5,6.9388]
[1743775153739,11.07813,1805.4,1804.8,5.54073]
[1743775153941,5.53925,1805.3,1804.7,5.54093]
[1743775154147,11.07815,1805.4,1804.7,5.54093]
[1743775154351,5.54015,1805.1,1804.4,8.533]
[1743775154551,0.7554,1805.2,1804.3,5.54213]
[1743775154866,5.54049,1804.9,1804.1,0.05]
[1743775155151,6.29759,1804.6,1804.1,0.05]
[1743775155551,5.54171,1804.5,1804.1,0.05]
[1743775155723,0.7562,1804.6,1804.2,0.05541742]
[1743775155922,6.29782,1804.6,1804.1,0.05]
[1743775156154,5.54182,1804.5,1804.2,0.05541711]
[1743775156343,5.54262,1804.2,1804.1,0.05]
[1743775157451,5.54262,1804.2,1803.1,0.05]
[1743775157452,5.54459,1803.6,1803.1,5.59584]
[1743775157674,5.54417,1803.7,1803.2,0.05544371]
[1743775157840,5.54494,1803.5,1803.1,0.05]
[1743775158164,11.08999,1803.5,1803.1,0.05]
[1743775158469,5.54494,1803.5,1803.1,0.05]
[1743775158972,5.5443,1803.7,1803.2,5.60111818]
[1743775159128,5.54461,1803.6,1803.2,1.11969882]
[1743775159456,5.54417,1803.7,1803.3,0.05544544]
[1743775159662,6.31032,1804.3,1803.1,0.05]
[1743775159823,6.31032,1804.3,1803.5,5.54459]
[1743775160158,5.54438,1803.7,1803.1,14.10372]
[1743775160343,5.54497,1803.5,1803.2,0.05544234]
[1743775160656,0.7679,1803.6,1803.2,5.60089821]
[1743775160821,11.08722,1803.9,1803.3,5.54514]
[1743775161021,5.54354,1803.9,1803.4,5.60051233]
[1743775161228,5.54354,1803.9,1803.4,5.60042233]
[1743775161552,11.08734,1803.9,1803.4,0.05544233]
[1743775161760,5.54354,1803.9,1803.4,5.60039233]
[1743775161958,0.7806,1804.3,1803.7,5.54399]
[1743775162156,5.54276,1804.2,1803.8,0.05543098]
[1743775162323,5.54401,1803.8,1803.2,6.11076982]
[1743775162529,5.54454,1803.6,1803.2,0.56508982]
[1743775162724,5.54416,1803.7,1803.3,0.05544595]
[1743775163031,5.54468,1803.6,1803.2,0.56508982]
[1743775163436,5.54525,1803.4,1803.1,0.05]
[1743775163636,5.54544,1803.3,1803.1,0.05]
[1743775163847,30.4756,1803.6,1803.1,5.59582]
[1743775164023,24.931,1803.6,1803.1,5.59582]
[1743775164229,24.931,1803.6,1803.2,0.05544544]
[1743775164430,24.931,1803.6,1803.2,6.72075998]
[1743775164760,24.931,1803.6,1803.1,0.05]
[1743775165062,5.54569,1803.2,1803.1,0.05]
[1743775165558,6.36649,1803.2,1803.1,0.05]
[1743775167524,5.54786,1802.5,1802.1,0.05]
[1743775167724,5.54846,1802.3,1802.1,0.05]
[1743775167924,5.5485,1802.3,1802.1,0.05]
[1743775168129,0.7584,1802.4,1802.1,0.05]
[1743775168436,5.54851,1802.3,1802.1,0.05]
[1743775168758,5.54877,1802.2,1802.1,0.05]
[1743775168938,5.54857,1802.3,1802.1,0.05]
[1743775169133,5.54877,1802.2,1802.1,0.05]
[1743775169333,6.30656,1802.4,1802.1,0.05]
[1743775169559,0.7584,1802.4,1802.1,0.05]
[1743775169860,24.939,1802.7,1802.2,5.54852]
[1743775170162,24.939,1802.7,1802.1,6.158882]
[1743775170163,5.54755,1802.6,1802.1,6.158882]
[1743775170359,24.939,1802.7,1802.2,0.05547745]
[1743775170545,0.7639,1803.1,1802.5,5.54754]
[1743775170747,5.54441,1803.7,1802.6,0.05547162]
[1743775170938,5.54441,1803.7,1802.7,0.8112]
[1743775171145,5.54435,1803.7,1802.9,5.54661]
[1743775171344,5.54491,1803.5,1803.0,11.647011]
[1743775171668,0.7639,1803.9,1803.3,5.54536]
[1743775171835,20.2905,1804.2,1803.6,5.54416]
[1743775172030,9.2049,1804.2,1803.7,0.05543589]
[1743775172231,9.2049,1804.2,1803.5,0.05543597]
[1743775172460,5.54378,1803.9,1803.4,0.8272]
[1743775172836,5.54378,1803.9,1803.4,7.009418]
[1743775173161,5.54407,1803.8,1803.4,1.464458]
[1743775173581,11.08733,1803.9,1803.4,7.009398]
[1743775173732,13.97301,1804.1,1803.5,5.54476]
[1743775173933,5.54355,1803.9,1803.4,7.009388]
[1743775174271,8.43,1804.1,1803.4,0.05543935]
[1743775174468,5.54512,1803.4,1803.0,0.8102]
[1743775174634,5.54477,1803.5,1803.0,6.35645]
[1743775174830,5.54368,1803.9,1803.1,0.05545133]
[1743775175073,5.54368,1803.9,1803.3,5.54523]
[1743775175250,5.54403,1803.8,1803.4,0.05544119]
[1743775175445,5.54451,1803.6,1803.3,0.554523]
[1743775175649,5.54417,1803.7,1803.2,5.60111672]
[1743775175956,5.54597,1803.2,1802.3,0.7813]
[1743775176143,5.54563,1803.3,1802.8,5.54675]
[1743775176339,5.54597,1803.2,1802.7,5.60262098]
[1743775176535,6.32237,1803.5,1802.7,0.05546098]
[1743775176536,0.7775,1803.5,1802.7,0.05546098]
[1743775176868,0.7775,1803.5,1802.4,5.54787]
[1743775177064,6.32242,1803.5,1802.5,0.554787]
[1743775177267,5.5454,1803.3,1802.8,5.54677]
[1743775177439,5.54573,1803.2,1802.9,0.05545568]
[1743775177635,0.7775,1803.5,1802.9,5.60190568]
[1743775177636,5.54512,1803.4,1802.9,5.60190568]
[1743775177849,24.943,1803.6,1802.9,0.85655568]
[1743775178063,5.5451,1803.4,1802.9,6.34749]
[1743775178250,5.5459,1803.2,1802.6,0.8068]
[1743775178450,5.54538,1803.4,1802.6,0.8068]
[1743775178651,5.54538,1803.4,1802.9,5.54646]
[1743775178859,5.54619,1803.1,1802.6,6.35418]
[1743775179053,5.54684,1802.9,1802.4,5.54814]
[1743775179256,5.5471,1802.8,1802.3,0.38749333]
[1743775179483,8.336,1803.0,1802.6,5.54736]
[1743775179647,13.88231,1803.0,1802.7,0.05546424]
[1743775179971,13.88231,1803.0,1802.5,5.54778]
[1743775180171,5.54631,1803.0,1802.3,2.23255966]
[1743775180378,0.777,1803.4,1802.9,5.54649]
[1743775180573,5.54601,1803.1,1802.6,5.54751]
[1743775180774,5.54576,1803.2,1802.7,5.60268179]
[1743775180980,11.09169,1803.2,1802.7,5.60268179]
[1743775181163,11.09173,1803.2,1802.7,5.60268179]
[1743775181365,5.54602,1803.1,1802.7,0.05546179]
[1743775181554,0.777,1803.4,1802.7,0.05546178]
[1743775181757,24.943,1803.6,1803.0,5.54601]
[1743775181960,5.54538,1803.4,1802.8,0.8147]
[1743775182282,5.54523,1803.4,1802.9,5.54641]
[1743775182586,5.54478,1803.5,1802.9,5.54641]
[1743775182877,11.09104,1803.3,1802.8,6.36141]
[1743775183077,5.54612,1803.1,1802.8,0.8147]
[1743775183269,11.09242,1803.1,1802.8,0.8147]
[1743775183458,3.880546,1803.5,1802.9,0.05545976]
[1743775183780,5.54624,1803.1,1802.9,0.05545976]
[1743775183979,3.880546,1803.5,1802.7,0.44295342]
[1743775184147,5.54587,1803.2,1802.7,0.44295342]
[1743775184347,5.54587,1803.2,1802.8,5.93441333]
[1743775184587,5.54555,1803.3,1802.9,0.05545995]
[1743775184780,11.09116,1803.3,1802.8,5.93441333]